bitfinex/quotes_ETHUSD_20260310
["timestamp","ask_amount","ask_price","bid_price","bid_amount"]
[1773104070805,0.48863081,2016.3,2015.7,0.001]
[1773104071305,0.48863081,2015.9,2015.7,0.001]
[1773104071977,1.72882726,2015.9,2015.7,0.001]
[1773104072702,1.24000411,2016.2,2015.7,0.49768286]
[1773104073073,1.72854274,2016.3,2015.7,0.49768286]
[1773104073806,1.69054338,2016.5,2015.7,0.49768286]
[1773104073979,1.69054338,2016.5,2015.9,0.47363183]
[1773104076001,0.4507715,2016.4,2015.9,0.47363183]
[1773104077105,0.4507715,2016.4,2015.9,1.71376137]
[1773104077497,0.4507715,2016.4,2016.1,0.001]
[1773104077795,0.002,2016.3,2016.1,0.001]
[1773104078310,1.24189485,2016.3,2016.1,0.001]
[1773104079036,0.002,2016.3,2016.1,0.001]
[1773104079920,0.4527715,2016.3,2016.1,0.001]
[1773104080309,1.69272622,2016.3,2016.1,0.001]
[1773104080627,0.4507715,2016.2,2015.9,0.001]
[1773104081897,1.24195472,2016.3,2015.9,0.47463183]
[1773104082353,1.69272622,2016.3,2015.9,0.47463183]
[1773104082724,0.4507715,2016.2,2015.9,0.47463183]
[1773104082923,0.4507715,2016.2,2015.9,0.001]
[1773104084633,0.4507715,2016.0,2015.9,0.001]
[1773104084831,1.69078935,2016.1,2015.9,0.001]
[1773104085029,0.4507715,2016.1,2015.9,0.001]
[1773104085319,1.2400047,2016.2,2015.9,0.001]
[1773104085647,1.6907762,2016.2,2015.9,0.001]
[1773104086237,0.4507715,2016.1,2015.9,0.001]
[1773104086914,1.69085086,2016.0,2015.9,0.001]
[1773104088156,0.4507715,2015.9,2015.7,0.001]
[1773104088948,1.2402024,2015.8,2015.7,0.001]
[1773104089777,1.69094576,2015.9,2015.7,0.001]
[1773104089986,0.4507715,2016.1,2015.7,0.001]
[1773104091106,1.69085086,2016.0,2015.9,0.001]
[1773104092304,0.48319545,2015.9,2015.7,0.001]
[1773104093013,1.72339785,2015.8,2015.7,0.001]
[1773104093888,1.72339785,2015.8,2015.4,0.001]
[1773104093889,0.48319545,2015.7,2015.4,0.001]
[1773104094784,0.48319545,2015.7,2014.9,0.49686809]
[1773104094997,0.48319545,2015.4,2014.9,0.49686809]
[1773104095908,0.48319545,2015.4,2014.7,2.61702646]
[1773104096108,0.48319545,2015.4,2014.7,1.37614978]
[1773104096428,0.48319545,2015.3,2014.5,0.49686809]
[1773104097026,0.48319545,2015.1,2014.5,0.49686809]
[1773104097514,1.24057165,2015.2,2014.6,0.49686809]
[1773104097995,1.7237671,2015.2,2014.6,0.49686809]
[1773104098394,0.48319545,2015.1,2014.6,0.49686809]
[1773104098601,0.48319545,2015.1,2014.2,0.49686809]
[1773104099121,1.72389023,2015.0,2014.4,0.49686809]
[1773104099325,0.48319545,2014.9,2014.4,0.49686809]
[1773104100935,1.24069478,2015.0,2014.4,0.49686809]
[1773104101149,1.24069478,2015.0,2014.5,0.49686809]
[1773104101715,1.72389023,2015.0,2014.5,0.49686809]
[1773104102545,0.48319545,2015.2,2014.5,0.49686809]
[1773104102708,1.24049702,2015.4,2014.5,0.49686809]
[1773104102912,1.24042962,2015.5,2014.5,0.49686809]
[1773104103112,1.72362507,2015.5,2014.9,0.49686809]
[1773104103928,0.48807561,2015.4,2014.6,0.001]
[1773104104141,0.48807561,2015.1,2014.6,0.001]
[1773104105226,0.48807561,2014.9,2014.6,0.001]
[1773104105635,0.48807561,2014.8,2013.9,0.77791303]
[1773104105811,0.48807561,2014.8,2014.0,0.48093459]
[1773104105812,0.48807561,2014.5,2014.0,0.48093459]
[1773104106315,0.48807561,2014.5,2013.9,1.25884762]
[1773104106510,0.48807561,2014.5,2014.0,6.20683774]
[1773104106711,0.48807561,2014.5,2014.0,6.68777233]
[1773104106912,0.48807561,2014.5,2013.9,2.01928171]
[1773104106913,0.48807561,2014.5,2014.1,6.68777233]
[1773104107112,0.48807561,2014.7,2014.1,0.48093459]
[1773104107359,1.72901673,2014.6,2014.2,6.20683774]
[1773104108142,1.72893891,2014.8,2014.3,0.48093459]
[1773104108513,1.72893891,2014.8,2014.4,6.20683774]
[1773104108711,0.48807561,2014.7,2014.4,6.20683774]
[1773104109147,0.48807561,2014.7,2013.9,1.25884762]
[1773104109445,0.48807561,2014.7,2014.0,6.20683774]
[1773104109446,0.48807561,2014.4,2014.0,6.20683774]
[1773104109646,1.24094112,2014.6,2014.1,0.48093459]
[1773104109647,1.72901673,2014.6,2014.1,0.48093459]
[1773104110023,1.72901673,2014.6,2013.9,2.01926607]
[1773104110024,0.48807561,2014.5,2013.9,0.77791303]
[1773104110334,0.48807561,2014.5,2014.0,6.68777233]
[1773104110530,1.7289614,2014.7,2014.1,0.48093459]
[1773104110717,2.46127194,2015.4,2014.1,0.48093459]
[1773104110718,1.24063321,2015.1,2014.1,0.48093459]
[1773104110919,0.48807561,2015.0,2014.3,0.48093459]
[1773104111530,1.24075636,2014.9,2014.4,7.4478848]
[1773104111734,1.24075636,2014.9,2014.5,0.48093459]
[1773104112545,1.72881811,2015.0,2014.5,0.48093459]
[1773104112748,1.72863961,2015.3,2014.7,0.48093459]
[1773104112943,0.48807561,2015.2,2014.7,0.48093459]
[1773104113245,0.48807561,2015.2,2014.5,6.68777233]
[1773104113447,0.48807561,2015.0,2014.5,6.68777233]
[1773104113652,0.48807561,2015.0,2014.5,6.20683774]
[1773104114254,1.24063321,2015.1,2014.5,6.20683774]
[1773104114255,1.24063321,2015.1,2014.6,0.48093459]
[1773104114718,1.614,2015.6,2014.5,7.44782229]
[1773104114719,0.48807561,2015.5,2014.8,0.48093459]
[1773104114918,0.48807561,2015.5,2014.6,6.68777233]
[1773104115730,0.48807561,2015.3,2014.6,6.68777233]
[1773104116026,0.48807561,2015.3,2014.6,7.92870211]
[1773104116550,0.48807561,2015.3,2014.7,0.48093459]
[1773104116738,0.48807561,2015.3,2014.6,6.20683774]
[1773104117157,0.48807561,2015.3,2014.7,0.48093459]
[1773104117458,0.48807561,2015.3,2014.8,0.001]
[1773104117837,1.24257165,2015.2,2014.8,1.24181794]
[1773104118163,0.002,2015.2,2014.8,1.24181794]
[1773104118321,0.002,2015.2,2014.9,6.68777233]
[1773104119948,0.002,2015.2,2014.9,7.92850759]
[1773104120156,0.002,2015.2,2014.9,6.68777233]
[1773104121249,1.24056066,2015.3,2015.0,0.48093459]
[1773104121449,1.7305577,2015.4,2015.0,0.48093459]
[1773104121748,1.7305577,2015.4,2015.2,0.48093459]
[1773104121749,0.002,2015.4,2015.2,0.48093459]
[1773104121949,0.002,2015.4,2015.0,6.68577233]
[1773104122137,0.002,2015.4,2015.0,0.48093459]
[1773104122344,0.49007561,2015.4,2015.1,6.20483774]
[1773104124052,1.24051009,2015.3,2015.1,6.20483774]
[1773104124755,1.73056539,2015.4,2015.1,6.20483774]
[1773104126232,0.48807561,2015.3,2014.8,0.001]
[1773104126554,0.48807561,2015.3,2014.6,0.48093459]
[1773104126555,0.48807561,2015.0,2014.2,0.48093459]
[1773104129462,0.48807561,2015.0,2014.0,0.48093459]
[1773104129463,0.48807561,2014.7,2014.0,0.48093459]
[1773104131333,0.48807561,2014.5,2014.0,0.48093459]
[1773104131840,1.24094112,2014.6,2014.0,0.48093459]
[1773104132043,4.96376451,2014.7,2014.1,0.48093459]
[1773104132044,1.7289922,2014.7,2014.1,0.48093459]
[1773104132927,0.48807561,2014.6,2014.1,0.48093459]
[1773104133645,1.24100273,2014.5,2014.1,0.48093459]
[1773104133851,1.24092898,2014.7,2014.2,0.4987818]
[1773104134656,1.69814305,2014.7,2014.2,0.4987818]
[1773104134844,0.45721407,2014.6,2014.2,0.4987818]
[1773104135552,0.45721407,2014.6,2014.0,0.001]
[1773104135757,1.24100273,2014.5,2014.0,0.4997818]
[1773104136065,1.24100273,2014.5,2014.0,1.74107405]
[1773104136261,1.69817825,2014.6,2014.1,0.4987818]
[1773104136964,0.45721407,2014.5,2014.1,0.4987818]
[1773104137160,0.45721407,2014.5,2014.0,1.24230426]
[1773104137368,0.45721407,2014.5,2014.0,0.001]
[1773104137536,0.45721407,2014.5,2014.0,0.4997818]
[1773104138847,1.24106433,2014.4,2014.0,0.001]
[1773104139048,1.24102603,2014.5,2014.1,0.4987818]
[1773104139361,1.6982401,2014.5,2014.1,0.4987818]
[1773104140171,6.57749126,2014.9,2014.0,0.001]
[1773104140172,0.37681195,2015.4,2014.0,0.001]
[1773104140394,4.96054062,2016.0,2015.4,0.4987818]
[1773104140677,4.96097153,2015.8,2015.2,0.4987818]
[1773104140881,1.24214991,2015.9,2015.3,0.4987818]
[1773104141170,1.24214408,2015.9,2015.3,0.4987818]
[1773104141873,0.002,2015.9,2015.3,0.4987818]
[1773104143254,0.002,2015.9,2015.5,0.4987818]
[1773104147066,0.002,2015.9,2015.5,1.73916483]
[1773104147871,0.002,2015.9,2015.5,0.4987818]
[1773104156080,0.002,2015.9,2015.2,1.24052374]
[1773104156081,0.45301263,2015.8,2015.2,1.24052374]
[1773104156303,0.45301263,2015.8,2015.3,0.47660169]
[1773104157966,0.45301263,2015.8,2015.3,1.71706015]
[1773104158283,0.002,2015.9,2015.4,0.47660169]
[1773104159156,0.002,2015.9,2015.5,0.47760169]
[1773104159798,0.002,2015.9,2014.6,0.47660169]
[1773104159799,0.45301263,2015.4,2014.6,0.47660169]
[1773104160087,1.69358428,2015.2,2015.0,0.001]
[1773104160257,0.45301263,2015.1,2014.6,0.47660169]
[1773104160456,0.45301263,2015.1,2014.7,0.001]
[1773104161881,0.45301263,2015.1,2014.7,0.47760169]
[1773104162306,0.45301263,2015.0,2014.4,1.71861893]
[1773104162806,0.45301263,2015.0,2014.4,1.24201724]
[1773104163015,0.45301263,2015.0,2014.5,0.47660169]
[1773104164215,1.69370828,2015.0,2014.5,1.71757254]
[1773104164629,1.69370828,2015.0,2014.6,0.001]
[1773104164630,0.46976005,2014.9,2014.6,0.001]
[1773104164776,0.46976005,2014.9,2014.5,0.001]
[1773104166080,0.46976005,2014.7,2014.4,0.001]
[1773104166282,1.24081794,2014.8,2014.2,0.001]
[1773104166283,0.46976005,2014.6,2014.2,0.001]
[1773104166592,2.46608957,2014.9,2014.3,0.49701323]
[1773104166796,1.7105045,2015.0,2014.3,0.49601323]
[1773104167110,0.46976005,2014.9,2014.4,0.001]
[1773104167815,0.46976005,2014.9,2014.4,0.49701323]
[1773104168011,5.43191488,2015.3,2014.4,0.49701323]
[1773104168212,0.46976005,2015.2,2014.6,0.49601323]
[1773104170217,1.71039326,2015.1,2014.6,0.49601323]
[1773104170518,0.46976005,2015.0,2014.7,0.001]
[1773104170694,0.46976005,2015.0,2014.4,1.73707534]
[1773104170895,0.46976005,2015.0,2014.5,0.001]
[1773104171413,0.46976005,2015.0,2014.5,0.49701323]
[1773104171924,0.46976005,2015.0,2014.7,0.001]
[1773104172086,1.24075636,2014.9,2014.7,0.001]
[1773104173591,1.71248746,2015.0,2014.7,0.001]
[1773104173796,1.71248746,2015.0,2014.7,0.002]
[1773104174318,0.46976005,2014.9,2014.7,0.001]
[1773104176309,1.71057799,2014.8,2014.5,0.001]
[1773104176687,0.46976005,2014.7,2014.6,0.001]
[1773104176914,0.46976005,2014.7,2014.2,3.16619566]
[1773104177490,0.46976005,2014.7,2014.0,0.49601323]
[1773104177821,0.46976005,2014.5,2014.0,0.49601323]
[1773104178217,1.24106433,2014.4,2014.0,0.49601323]
[1773104178419,5.43396146,2014.5,2014.0,1.73731853]
[1773104178619,0.46976005,2014.4,2013.9,0.77791303]
[1773104178822,0.46976005,2014.4,2014.0,0.49601323]
[1773104179121,1.24105262,2014.5,2014.0,0.49601323]
[1773104180821,1.24105262,2014.5,2014.1,0.49601323]
[1773104182811,1.2409836,2014.6,2014.2,0.49601323]
[1773104183414,1.71074365,2014.6,2014.2,0.49601323]
[1773104184897,0.46976005,2014.5,2014.0,0.49601323]
[1773104185428,0.46976005,2014.5,2014.2,0.001]
[1773104185827,0.002,2014.4,2014.2,0.001]
[1773104186609,0.47176005,2014.4,2014.2,0.001]
[1773104187025,1.71286029,2014.4,2014.2,0.001]
[1773104187220,1.24310024,2014.4,2014.2,0.001]
[1773104189134,0.002,2014.4,2014.2,0.49701323]
[1773104190045,0.002,2014.6,2014.3,0.49601323]
[1773104190753,1.71247939,2015.0,2014.3,0.49601323]
[1773104191044,1.611,2015.2,2014.7,0.49601323]
[1773104191045,0.002,2015.2,2014.7,0.49601323]
[1773104192355,0.002,2015.5,2014.8,0.49601323]
[1773104193108,0.002,2015.5,2015.0,0.49601323]
[1773104195538,0.002,2015.5,2015.2,0.45588827]
[1773104196936,0.45471652,2015.5,2014.9,0.45588827]
[1773104197239,0.45471652,2015.5,2014.7,0.45588827]
[1773104197240,0.45271652,2015.3,2014.7,0.45588827]
[1773104197645,0.002,2015.5,2015.1,2.46377342]
[1773104197808,0.002,2015.9,2015.2,0.45588827]
[1773104199640,0.002,2015.9,2015.4,0.45588827]
[1773104199968,0.002,2015.7,2015.4,0.45588827]
[1773104200337,0.002,2015.9,2015.4,0.45588827]
[1773104201946,0.002,2015.9,2015.6,0.45588827]
[1773104202559,0.002,2016.0,2015.7,0.45588827]
[1773104202738,0.002,2016.2,2015.8,0.45588827]
[1773104203753,0.002,2016.2,2015.7,1.432]
[1773104203754,0.002,2016.3,2016.0,0.45588827]
[1773104203948,0.002,2016.3,2016.2,0.45588827]
[1773104208674,0.002,2016.3,2016.2,1.69584462]
[1773104208874,0.002,2016.3,2016.2,0.45588827]
[1773104209257,0.002,2016.5,2016.3,0.47676523]
[1773104209482,0.002,2016.5,2016.1,1.71674675]
[1773104211284,0.002,2016.5,2016.1,0.47676523]
[1773104211489,0.46957968,2016.5,2016.1,1.71678047]
[1773104212364,0.002,2016.3,2016.1,1.71678047]
[1773104213176,0.46957968,2016.3,2015.7,1.90876523]
[1773104213380,0.002,2016.3,2015.9,0.47676523]
[1773104214863,0.002,2016.3,2016.0,1.71684459]
[1773104218276,0.002,2016.3,2016.1,0.47676523]
[1773104218992,0.002,2016.3,2016.2,1.71672158]
[1773104219163,0.002,2016.3,2016.2,0.47676523]
[1773104219363,0.002,2016.3,2016.1,1.2399792]
[1773104219805,0.002,2016.3,2016.0,1.2400792]
[1773104220674,0.46957968,2016.3,2015.9,1.71690395]
[1773104221201,1.70950455,2016.3,2015.8,1.2401728]
[1773104221518,0.46757968,2016.2,2015.7,1.90876523]
[1773104221664,0.46757968,2016.2,2015.7,3.14902076]
[1773104222021,1.70950455,2016.3,2015.8,0.47676523]
[1773104222180,0.46757968,2016.2,2015.8,0.47676523]
[1773104223665,1.70756955,2016.2,2015.8,0.47676523]
[1773104224114,1.70756955,2016.2,2016.1,0.001]
[1773104226367,1.24189542,2016.3,2016.1,0.001]
[1773104227497,1.71850488,2016.3,2016.1,0.001]
[1773104227704,1.24189542,2016.3,2016.1,0.001]
[1773104227879,0.002,2016.3,2016.1,0.001]
[1773104228066,1.24189847,2016.3,2016.1,0.48939013]
[1773104228468,0.002,2016.3,2016.1,0.48939013]
[1773104229292,0.002,2016.3,2016.1,1.72940522]
[1773104229492,0.002,2016.3,2016.1,0.48939013]
[1773104229789,0.002,2016.3,2016.1,0.001]
[1773104230014,0.47860946,2016.3,2016.1,0.001]
[1773104230416,1.71854249,2016.3,2016.1,0.001]
[1773104231090,0.47860946,2016.3,2016.1,0.001]
[1773104231923,0.002,2016.3,2016.1,0.001]
[1773104235631,0.47860946,2016.3,2016.1,0.001]
[1773104239643,0.002,2016.3,2016.1,0.001]
[1773104239823,0.002,2016.3,2016.1,0.48939013]
[1773104240844,0.47860946,2016.3,2016.1,0.001]
[1773104241235,0.002,2016.3,2016.1,0.48939013]
[1773104241722,1.71850751,2016.3,2016.1,0.001]
[1773104241918,0.47660946,2016.2,2016.1,0.001]
[1773104242318,0.47660946,2016.2,2015.9,0.001]
[1773104245436,1.71662176,2016.2,2015.9,0.001]
[1773104246246,1.71662176,2016.2,2015.6,0.001]
[1773104246247,0.47660946,2015.9,2015.6,0.001]
[1773104246452,0.47660946,2015.9,2015.2,5.45149196]
[1773104246453,0.47660946,2015.7,2015.2,0.001]
[1773104247421,0.47660946,2015.6,2015.2,0.48939013]
[1773104247624,0.47660946,2015.8,2015.2,0.48939013]
[1773104249148,0.47660946,2015.8,2015.4,0.001]
[1773104249726,0.47660946,2015.7,2015.4,0.001]
[1773104251439,0.47660946,2015.9,2015.4,0.48939013]
[1773104251640,1.2402024,2015.8,2015.4,1.72982898]
[1773104251840,0.47660946,2015.8,2015.4,1.72982898]
[1773104252056,0.002,2016.1,2015.5,0.48839013]
[1773104253646,0.002,2016.1,2015.7,1.24026392]
[1773104254054,0.002,2016.1,2015.8,0.45632938]
[1773104254440,0.46603638,2016.1,2015.6,1.69660777]
[1773104254640,0.46603638,2016.1,2015.4,0.001]
[1773104254641,0.46403638,2015.9,2015.4,0.001]
[1773104255001,0.46403638,2015.9,2015.4,1.24143003]
[1773104255536,0.46403638,2015.9,2015.4,1.69775941]
[1773104255865,0.46403638,2015.8,2015.4,1.69775941]
[1773104256766,0.46403638,2015.8,2015.4,0.001]
[1773104256937,0.46403638,2015.8,2015.4,1.24144581]
[1773104257871,1.70426056,2015.8,2015.4,1.24144581]
[1773104258965,1.70426056,2015.8,2015.4,0.001]
[1773104259173,0.46403638,2015.7,2015.4,0.001]
[1773104261078,0.46403638,2015.9,2015.6,0.001]
[1773104261540,0.002,2015.7,2015.6,0.45732938]
[1773104263675,0.002,2015.7,2015.6,0.001]
[1773104267149,0.46603638,2015.7,2015.4,0.001]
[1773104269780,1.70630685,2015.7,2015.4,0.001]
[1773104270007,0.47168533,2015.6,2015.4,0.001]
[1773104274871,0.002,2015.7,2015.5,0.49545772]
[1773104275281,0.002,2015.7,2015.4,2.22582872]
[1773104275282,0.002,2015.9,2015.7,0.49545772]
[1773104275690,0.47368533,2015.9,2015.6,0.001]
[1773104276493,0.47368533,2015.9,2015.6,0.49645772]
[1773104278697,1.71384317,2015.9,2015.6,0.49645772]
[1773104278999,1.71384317,2015.9,2015.6,0.001]
[1773104279685,1.71383782,2015.9,2015.6,0.001]
[1773104280268,1.71383782,2015.9,2015.7,0.49545772]
[1773104280269,0.002,2015.9,2015.7,0.49545772]
[1773104281508,0.47168533,2015.0,2014.6,3.49348809]
[1773104281920,2.97295716,2014.9,2014.6,3.49348809]
[1773104282200,2.97295716,2014.8,2014.6,3.49348809]
[1773104282400,0.47168533,2014.8,2014.5,1.18929419]
[1773104282599,2.85005106,2015.1,2014.5,4.73448228]
[1773104282894,3.44134216,2015.0,2014.5,4.73448228]
[1773104283077,2.96965683,2014.9,2014.5,5.22994]
[1773104283273,0.47168533,2015.0,2014.5,5.22994]
[1773104283499,2.96745781,2014.9,2014.6,0.46389447]
[1773104283798,0.47168533,2015.0,2014.6,0.46389447]
[1773104284002,0.47168533,2015.0,2014.7,3.49348809]
[1773104284201,2.96632797,2015.0,2014.7,3.49348809]
[1773104284376,0.49870094,2015.2,2014.7,3.95738256]
[1773104284581,1.73928176,2015.2,2014.7,3.95738256]
[1773104285099,0.49870094,2015.4,2014.8,0.46389447]
[1773104285311,0.49870094,2015.4,2014.9,1.24075636]
[1773104285514,0.49870094,2015.4,2014.9,1.70465083]
[1773104285674,1.73902982,2015.6,2015.0,0.46389447]
[1773104286184,0.49870094,2015.6,2015.1,3.49348809]
[1773104286799,0.49870094,2015.6,2015.0,0.46389447]
[1773104286800,1.73903514,2015.6,2015.0,0.46389447]
[1773104286970,0.49870094,2015.6,2015.1,3.49348809]
[1773104287385,1.73904663,2015.6,2015.1,4.73408119]
[1773104287766,1.74104663,2015.6,2015.1,4.73408119]
[1773104287972,0.50070094,2015.6,2015.1,4.73408119]
[1773104288173,0.50070094,2015.6,2015.1,1.2405931]
[1773104289505,0.002,2015.6,2015.3,1.24051009]
[1773104289802,0.002,2015.6,2015.3,1.70440456]
[1773104290171,0.002,2015.6,2015.4,3.49348809]
[1773104293982,0.002,2015.6,2015.4,4.73389028]
[1773104294187,0.002,2015.8,2015.5,0.46389447]
[1773104294390,0.002,2015.8,2015.6,0.46389447]
[1773104296103,0.002,2015.8,2015.6,1.70419525]
[1773104296305,0.002,2015.8,2015.4,1.70430054]
[1773104296883,0.002,2015.8,2015.5,0.46389447]
[1773104298400,0.002,2015.8,2015.7,0.46389447]
[1773104298915,0.002,2015.8,2015.6,4.73381355]
[1773104302219,0.002,2015.8,2015.6,1.24032546]
[1773104303221,0.002,2015.8,2015.5,3.150242]
[1773104303423,0.002,2015.8,2015.6,3.49348809]
[1773104305390,0.50070094,2015.8,2015.3,1.24047325]
[1773104305594,0.50070094,2015.8,2015.5,0.46389447]
[1773104305595,0.002,2015.8,2015.5,0.46389447]
[1773104306121,0.002,2015.9,2015.7,0.46389447]
[1773104306319,0.002,2016.1,2015.7,0.46389447]
[1773104306492,0.002,2016.1,2015.9,0.46389447]
[1773104307794,0.002,2016.1,2015.9,1.70399362]
[1773104308829,0.002,2016.2,2016.0,3.95738256]
[1773104309632,0.50070094,2016.5,2016.2,1.23995635]
[1773104309837,0.002,2016.5,2016.2,1.70385082]
[1773104310050,0.002,2016.5,2016.2,0.46389447]
[1773104310527,0.002,2016.5,2016.1,1.23996781]
[1773104310726,0.50070094,2016.5,2016.2,3.49348809]
[1773104311830,0.50070094,2016.5,2016.2,4.73341014]
[1773104313319,0.002,2016.5,2016.2,5.19730461]
[1773104313624,0.002,2016.4,2016.2,5.19730461]
[1773104316196,0.002,2016.4,2016.3,0.45554821]
[1773104317323,0.002,2016.5,2016.3,3.9490363]
[1773104317820,0.002,2016.5,2016.3,5.4020363]
[1773104318022,0.002,2016.5,2016.4,1.23983336]
[1773104318721,0.002,2016.5,2016.4,4.73332145]
[1773104319922,0.002,2016.5,2016.4,3.49348809]
[1773104320236,0.002,2016.5,2016.4,4.73332145]
[1773104322507,0.002,2016.5,2016.4,5.18886966]
[1773104323643,0.002,2016.5,2016.4,4.73332145]
[1773104325111,0.002,2016.5,2016.4,4.73432145]
[1773104329253,0.002,2016.5,2016.4,5.18986966]
[1773104329411,0.002,2016.8,2016.6,0.45554821]
[1773104329609,0.002,2016.8,2016.5,0.45554821]
[1773104329610,0.49366933,2016.8,2016.5,0.45554821]
[1773104330456,0.49366933,2016.8,2016.5,1.6952627]
[1773104332451,0.49366933,2016.8,2016.4,4.96017996]
[1773104332660,0.49366933,2016.8,2016.5,3.49348809]
[1773104334880,0.49366933,2016.8,2016.5,4.73321378]
[1773104335056,0.49366933,2016.8,2016.4,0.001]
[1773104335057,3.4623109,2016.7,2016.4,0.001]
[1773104335261,0.49677611,2016.6,2016.4,3.1772355]
[1773104337551,0.49877611,2016.6,2016.4,3.1772355]
[1773104342804,0.49877611,2016.6,2016.1,0.001]
[1773104342805,0.49677611,2016.3,2016.1,0.001]
[1773104343093,3.46767201,2016.2,2016.1,0.001]
[1773104343959,0.49677611,2016.2,2016.1,0.001]
[1773104346404,2.37103823,2016.6,2016.2,0.46383909]
[1773104346405,0.45964953,2016.6,2016.2,0.46383909]
[1773104346702,2.96868439,2016.5,2016.2,0.46483909]
[1773104346859,2.96868439,2016.5,2016.2,1.70374737]
[1773104347461,0.45964953,2016.6,2016.2,1.70374737]
[1773104347689,0.45964953,2016.6,2016.3,0.001]
[1773104347894,0.45964953,2016.6,2016.3,0.46483909]
[1773104348092,0.002,2016.6,2016.3,0.46483909]
[1773104348296,0.002,2016.6,2016.3,0.46383909]
[1773104348911,0.002,2016.6,2016.3,1.70371118]
[1773104349913,0.002,2016.6,2016.4,0.46483909]
[1773104350107,0.002,2016.6,2016.4,0.46583909]
[1773104350303,0.002,2016.6,2016.4,0.002]
[1773104350490,0.45964953,2016.6,2016.4,0.002]
[1773104351490,0.002,2016.6,2016.4,0.46583909]
[1773104353103,0.002,2016.6,2016.5,1.23977188]
[1773104353417,0.002,2016.6,2016.4,1.70562241]
[1773104357310,0.002,2016.9,2016.6,0.46383909]
[1773104357623,0.45964953,2016.9,2016.4,1.70562241]
[1773104357920,0.45964953,2016.9,2016.5,0.46383909]
[1773104359605,0.45964953,2016.9,2016.6,1.2397104]
[1773104361934,0.45964953,2016.9,2016.6,1.2407104]
[1773104362305,0.002,2016.7,2016.6,1.2407104]
[1773104362505,0.002,2016.7,2016.6,1.2417104]
[1773104363617,0.002,2016.7,2016.4,1.24082271]
[1773104363618,0.45964953,2016.7,2016.4,1.24082271]
[1773104364131,0.002,2016.7,2016.4,0.46483909]
[1773104364705,0.45964953,2016.7,2016.4,0.46483909]
[1773104366529,0.002,2016.7,2016.4,1.70464561]
[1773104366741,0.002,2016.7,2016.5,0.46383909]
[1773104367032,0.002,2017.0,2016.8,0.46383909]
[1773104368832,0.002,2017.0,2016.8,1.7033779]
[1773104370140,0.002,2017.0,2016.6,1.70349422]
[1773104370141,0.45964953,2017.0,2016.6,1.70349422]
[1773104370431,0.002,2017.0,2016.7,0.46383909]
[1773104371538,0.002,2017.2,2016.9,0.46383909]
[1773104371834,0.002,2017.2,2017.0,0.46383909]
[1773104372809,0.002,2017.2,2016.7,1.70344659]
[1773104372810,0.45964953,2017.2,2016.7,1.70344659]
[1773104373009,0.45764953,2017.1,2016.7,1.70344659]
[1773104373209,0.45764953,2017.1,2016.8,0.46383909]
[1773104373436,0.46683898,2017.2,2016.8,1.70340796]
[1773104374038,0.002,2017.0,2016.8,1.70340796]
[1773104374606,0.002,2017.0,2016.8,1.23956887]
[1773104374812,0.002,2017.0,2016.8,1.73661764]
[1773104375912,0.002,2017.0,2016.8,0.49704877]
[1773104376116,0.46683898,2017.0,2016.6,1.73772167]
[1773104376510,0.46683898,2017.0,2016.6,0.001]
[1773104377135,0.46683898,2017.0,2016.5,1.478]
[1773104377510,0.46683898,2017.0,2016.5,2.71775774]
[1773104377840,0.46483898,2016.9,2016.5,2.71775774]
[1773104378839,0.46483898,2016.9,2016.5,1.478]
[1773104379043,0.46483898,2016.9,2016.5,2.71777138]
[1773104381006,0.46483898,2016.9,2016.6,0.49704877]
[1773104381511,1.70437249,2016.9,2016.5,2.71777138]
[1773104381939,1.23953351,2016.9,2016.5,2.71777138]
[1773104382239,0.46483898,2016.8,2016.5,2.71777138]
[1773104385753,0.46483898,2016.6,2016.2,0.001]
[1773104385920,0.46483898,2016.4,2016.2,0.001]
[1773104390862,1.7045725,2016.6,2016.2,0.49804877]
[1773104391557,0.46483898,2016.9,2016.3,0.49704877]
[1773104392946,0.46483898,2016.7,2016.3,1.73690616]
[1773104396064,0.46334388,2016.6,2016.3,1.73690616]
[1773104396243,0.46334388,2016.6,2016.3,0.49704877]
[1773104396562,0.46334388,2016.6,2016.2,1.69637803]
[1773104397165,0.46334388,2016.6,2016.4,0.001]
[1773104397458,0.002,2016.5,2016.4,0.001]
[1773104398688,0.46534388,2016.5,2016.4,0.001]
[1773104400058,0.46334388,2016.4,2016.2,0.001]
[1773104400739,0.46334388,2016.3,2016.1,0.001]
[1773104400951,0.46334388,2016.2,2015.9,0.001]
[1773104401273,0.46334388,2016.2,2015.6,0.001]
[1773104401437,1.24177188,2016.5,2015.4,0.001]
[1773104401438,0.46334388,2015.7,2015.4,0.001]
[1773104401637,0.46334388,2015.5,2015.2,0.001]
[1773104402283,0.46334388,2015.5,2015.1,0.001]
[1773104403139,0.46334388,2015.7,2015.1,0.001]
[1773104403848,0.47004139,2015.5,2015.1,0.001]
[1773104404044,4.96113672,2015.7,2015.1,0.001]
[1773104404045,0.47004139,2015.7,2015.1,0.49168854]
[1773104404253,1.71003835,2016.2,2015.2,0.49068854]
[1773104404466,0.47004139,2016.1,2015.2,0.49068854]
[1773104404769,0.47004139,2016.1,2015.4,0.49068854]
[1773104405287,1.71185221,2016.5,2015.6,0.49068854]
[1773104405436,1.71185221,2016.5,2015.4,1.475]
[1773104405437,0.47004139,2016.1,2015.4,1.96568854]
[1773104405839,0.47004139,2015.9,2015.4,0.49068854]
[1773104406094,0.47004139,2015.9,2015.1,1.476]
[1773104406095,0.47004139,2015.7,2015.1,0.001]
[1773104406491,0.47004139,2015.7,2015.1,1.24162842]
[1773104406643,0.47004139,2015.7,2015.2,0.49068854]
[1773104407259,1.71010743,2016.1,2015.4,0.49068854]
[1773104407473,1.71010743,2016.1,2015.1,1.24162842]
[1773104407474,0.47004139,2016.0,2015.1,2.22606116]
[1773104407743,0.47004139,2016.0,2015.2,0.49068854]
[1773104408174,1.71002467,2016.2,2015.4,0.49068854]
[1773104408370,1.23997424,2016.2,2015.4,0.49068854]
[1773104408562,1.71001563,2016.2,2015.4,0.49068854]
[1773104408757,0.47004139,2016.2,2015.4,0.49068854]
[1773104408978,1.70991815,2016.4,2015.6,0.49068854]
[1773104409487,0.47204139,2016.1,2015.4,0.49168854]
[1773104409668,0.47204139,2016.1,2015.4,0.001]